fUSD/lending_fUSD_20240628
["ID","MTS","AMOUNT","RATE_DAILY","PERIOD"]
[330535731,1719561050500,-1090.73,0.00019178,2]
[330535732,1719561050510,-1132.58,0.00019178,2]
[330535733,1719561050519,-574.10285965,0.00019178,2]
[330535734,1719561050529,-615.52,0.00019178,2]
[330535735,1719561050538,-1125.15,0.00019178,2]
[330535736,1719561050548,-2267.1,0.00019178,2]
[330535737,1719561050853,-500.0,0.00019178,2]
[330535738,1719561050864,-500.0,0.00019178,2]
[330535739,1719561050874,-500.0,0.00019178,2]
[330535740,1719561050884,-568.55,0.00019178,2]
[330535741,1719561050894,-500.0,0.00019178,2]
[330535742,1719561050903,-2510.06,0.00019178,2]
[330535743,1719561050915,-500.0,0.00019178,2]
[330535744,1719561050925,-724.86,0.00019178,2]
[330535745,1719561050934,-500.0,0.00019178,2]
[330535746,1719561050944,-267.27,0.00019178,2]
[330535747,1719561050954,-500.0,0.00019178,2]
[330535748,1719561050963,-759.55,0.00019178,2]
[330535749,1719561050972,-500.0,0.00019178,2]
[330535750,1719561050981,-1851.28,0.00019178,2]
[330535751,1719561050991,-783.56,0.00019178,2]
[330535752,1719561051001,-500.0,0.00019178,2]
[330535753,1719561051011,-500.0,0.00019178,2]
[330535754,1719561051022,-2477.12,0.00019178,2]
[330535755,1719561051031,-2254.48,0.00019178,2]
[330535756,1719561051042,-500.0,0.00019178,2]
[330535757,1719561051051,-2145.27,0.00019178,2]
[330535758,1719561051061,-500.0,0.00019178,2]
[330535759,1719561051072,-500.0,0.00019178,2]
[330535760,1719561051083,-3000.49,0.00019178,2]
[330535761,1719561051093,-1120.11,0.00019178,2]
[330535762,1719561051102,-1339.23,0.00019178,2]
[330535763,1719561051112,-17654.57,0.00019178,2]
[330535764,1719561051122,-1458.45,0.00019178,2]
[330535765,1719561051132,-1203.63,0.00019178,2]
[330535766,1719561051141,-1367.37,0.00019178,2]
[330535767,1719561051151,-780.04,0.00019178,2]
[330535768,1719561051161,-500.0,0.00019178,2]
[330535769,1719561051171,-500.0,0.00019178,2]
[330535770,1719561051180,-500.0,0.00019178,2]
[330535771,1719561051189,-500.0,0.00019178,2]
[330535772,1719561051201,-1038.74,0.00019178,2]
[330535773,1719561051210,-2156.78,0.00019178,2]
[330535774,1719561051219,-500.0,0.00019178,2]
[330535775,1719561051228,-500.0,0.00019178,2]
[330535776,1719561051237,-1281.81,0.00019178,2]
[330535777,1719561051247,-361.44596183,0.00019178,2]
[330535778,1719561051257,-500.0,0.00019178,2]
[330535779,1719561051267,-500.0,0.00019178,2]
[330535780,1719561051278,-4903.61,0.00019178,2]
[330535781,1719561051287,-500.0,0.00019178,2]
[330535782,1719561051297,-707.98,0.00019178,2]
[330535783,1719561051306,-2512.87,0.00019178,2]
[330535784,1719561051316,-500.0,0.00019178,2]
[330535785,1719561051325,-385.00563239,0.00019178,2]
[330535786,1719561051337,-500.0,0.00019178,2]
[330535787,1719561051346,-692.45,0.00019178,2]
[330535788,1719561051356,-500.0,0.00019178,2]
[330535789,1719561051366,-2622.42,0.00019178,2]
[330535790,1719561051376,-1810.79,0.00019178,2]
[330535791,1719561051385,-1233.32,0.00019178,2]
[330535792,1719561051395,-1361.17,0.00019178,2]
[330535793,1719561051404,-1142.92,0.00019178,2]
[330535794,1719561051414,-1277.67,0.00019178,2]
[330535795,1719561051424,-500.0,0.00019178,2]
[330535796,1719561051434,-1346.62,0.00019178,2]
[330535797,1719561051444,-500.0,0.00019178,2]
[330535798,1719561051458,-1322.18,0.00019178,2]
[330535799,1719561051467,-552.58,0.00019178,2]
[330535800,1719561051476,-500.0,0.00019178,2]
[330535801,1719561051486,-863.49,0.00019178,2]
[330535802,1719561051495,-2301.13,0.00019178,2]
[330535803,1719561051504,-4612.82,0.00019178,2]
[330535804,1719561051513,-500.0,0.00019178,2]
[330535805,1719561051523,-500.0,0.00019178,2]
[330535806,1719561051533,-500.0,0.00019178,2]
[330535807,1719561051542,-1538.87,0.00019178,2]
[330535808,1719561051552,-1624.52,0.00019178,2]
[330535809,1719561051562,-6138.1,0.00019178,2]
[330535810,1719561051572,-500.0,0.00019178,2]
[330535811,1719561051581,-2577.63,0.00019178,2]
[330535812,1719561051591,-609.86896717,0.00019178,2]
[330535813,1719561051601,-500.0,0.00019178,2]
[330535814,1719561051611,-500.0,0.00019178,2]
[330535815,1719561051621,-500.0,0.00019178,2]
[330535816,1719561051631,-500.0,0.00019178,2]
[330535817,1719561051641,-1509.29,0.00019178,2]
[330535818,1719561051652,-500.0,0.00019178,2]
[330535819,1719561051661,-500.0,0.00019178,2]
[330535820,1719561051671,-1002.25,0.00019178,2]
[330535821,1719561051681,-1414.89,0.00019178,2]
[330535822,1719561051692,-1820.37,0.00019178,2]
[330535823,1719561051702,-1177.0,0.00019178,2]
[330535824,1719561051712,-1548.23,0.00019178,2]
[330535825,1719561051722,-1324.8,0.00019178,2]
[330535826,1719561051732,-1380.03,0.00019178,2]
[330535827,1719561051743,-500.0,0.00019178,2]
[330535828,1719561051753,-500.0,0.00019178,2]
[330535829,1719561051763,-500.0,0.00019178,2]
[330535830,1719561051772,-2472.64,0.00019178,2]
[330535831,1719561051781,-705.74,0.00019178,2]
[330535832,1719561051791,-500.0,0.00019178,2]
[330535833,1719561051801,-5070.88,0.00019178,2]
[330535834,1719561051811,-3381.95,0.00019178,2]
[330535835,1719561051821,-500.0,0.00019178,2]
[330535836,1719561051835,-500.0,0.00019178,2]
[330535837,1719561051845,-864.54,0.00019178,2]
[330535838,1719561051855,-2034.01,0.00019178,2]
[330535839,1719561051866,-1396.45,0.00019178,2]
[330535840,1719561051877,-1227.23,0.00019178,2]
[330535841,1719561051888,-2105.9,0.00019178,2]
[330535842,1719561051897,-500.0,0.00019178,2]
[330535843,1719561051907,-500.0,0.00019178,2]
[330535844,1719561051921,-500.0,0.00019178,2]
[330535845,1719561051931,-500.0,0.00019178,2]
[330535846,1719561051941,-500.0,0.00019178,2]
[330535847,1719561051954,-1675.94,0.00019178,2]
[330535848,1719561051963,-500.0,0.00019178,2]
[330535849,1719561051974,-1285.82,0.00019178,2]
[330535850,1719561051984,-536.38,0.00019178,2]
[330535851,1719561051992,-500.0,0.00019178,2]
[330535852,1719561052002,-500.0,0.00019178,2]
[330535853,1719561052014,-1080.4,0.00019178,2]
[330535854,1719561052025,-614.98,0.00019178,2]
[330535855,1719561052036,-1135.8,0.00019178,2]
[330535856,1719561052046,-1091.76,0.00019178,2]
[330535857,1719561052056,-3936.72,0.00019178,2]
[330535858,1719561052066,-500.0,0.00019178,2]
[330535859,1719561052075,-584.93444343,0.00019178,2]
[330535860,1719561052086,-500.0,0.00019178,2]
[330535861,1719561052095,-500.0,0.00019178,2]
[330535862,1719561052105,-500.0,0.00019178,2]
[330535863,1719561052115,-500.0,0.00019178,2]
[330535864,1719561052124,-4738.44,0.00019178,2]
[330535865,1719561052135,-500.0,0.00019178,2]
[330535866,1719561052145,-1651.05,0.00019178,2]
[330535867,1719561052154,-1956.77,0.00019178,2]
[330535868,1719561052164,-933.08,0.00019178,2]
[330535869,1719561052174,-510.44,0.00019178,2]
[330535870,1719561052183,-500.0,0.00019178,2]
[330535871,1719561052193,-500.0,0.00019178,2]
[330535872,1719561052204,-500.0,0.00019178,2]
[330535873,1719561052213,-6250.57,0.00019178,2]
[330535874,1719561052223,-500.0,0.00019178,2]
[330535875,1719561052233,-500.0,0.00019178,2]
[330535876,1719561052242,-2667.99,0.00019178,2]
[330535877,1719561052252,-4756.33,0.00019178,2]
[330535878,1719561052262,-1063.1,0.00019178,2]
[330535879,1719561052272,-823.18,0.00019178,2]
[330535880,1719561052281,-1293.08,0.00019178,2]
[330535881,1719561052291,-500.0,0.00019178,2]
[330535882,1719561052300,-5103.03,0.00019178,2]
[330535883,1719561052310,-721.31,0.00019178,2]
[330535884,1719561052319,-500.0,0.00019178,2]
[330535885,1719561052329,-500.0,0.00019178,2]
[330535886,1719561052339,-1439.83,0.00019178,2]
[330535887,1719561052349,-770.64,0.00019178,2]
[330535888,1719561052359,-2458.51,0.00019178,2]
[330535889,1719561052369,-500.0,0.00019178,2]
[330535890,1719561052378,-500.0,0.00019178,2]
[330535891,1719561052387,-500.0,0.00019178,2]
[330535892,1719561052397,-1211.11,0.00019178,2]
[330535893,1719561052407,-500.0,0.00019178,2]
[330535894,1719561052416,-552.09,0.00019178,2]
[330535895,1719561052426,-3750.61,0.00019178,2]
[330535896,1719561052435,-500.0,0.00019178,2]
[330535897,1719561052445,-500.0,0.00019178,2]
[330535898,1719561052458,-2098.22,0.00019178,2]
[330535899,1719561052468,-500.0,0.00019178,2]
[330535900,1719561052480,-4491.42,0.00019178,2]
[330535901,1719561052490,-500.0,0.00019178,2]
[330535902,1719561052500,-500.0,0.00019178,2]
[330535903,1719561052510,-754.56,0.00019178,2]
[330535904,1719561052519,-500.0,0.00019178,2]
[330535905,1719561052529,-304.49593171,0.00019178,2]
[330535906,1719561052539,-500.0,0.00019178,2]
[330535907,1719561052549,-2020.73,0.00019178,2]
[330535908,1719561052558,-500.0,0.00019178,2]
[330535909,1719561052568,-500.0,0.00019178,2]
[330535910,1719561052579,-500.0,0.00019178,2]
[330535911,1719561052589,-500.0,0.00019178,2]
[330535912,1719561052599,-500.0,0.00019178,2]
[330535913,1719561052609,-500.0,0.00019178,2]
[330535914,1719561052619,-2438.38,0.00019178,2]
[330535915,1719561052628,-1992.71,0.00019178,2]
[330535916,1719561052638,-781.62,0.00019178,2]
[330535917,1719561052647,-1432.47,0.00019178,2]
[330535918,1719561052657,-500.0,0.00019178,2]
[330535919,1719561052667,-1548.3,0.00019178,2]
[330535920,1719561052679,-500.0,0.00019178,2]
[330535921,1719561052688,-885.59,0.00019178,2]
[330535922,1719561052697,-500.0,0.00019178,2]
[330535923,1719561052710,-500.0,0.00019178,2]
[330535924,1719561052719,-5534.77,0.00019178,2]
[330535925,1719561052728,-500.0,0.00019178,2]
[330535926,1719561052737,-4164.92,0.00019178,2]
[330535927,1719561052747,-295.07416617,0.00019178,2]
[330535928,1719561052756,-1994.67,0.00019178,2]
[330535929,1719561052765,-1403.1,0.00019178,2]
[330535930,1719561052775,-500.0,0.00019178,2]
[330535931,1719561052784,-814.93,0.00019178,2]
[330535932,1719561052793,-526.81,0.00019178,2]
[330535933,1719561052803,-2686.24,0.00019178,2]
[330535934,1719561052813,-500.0,0.00019178,2]
[330535935,1719561052823,-3931.36,0.00019178,2]
[330535936,1719561052838,-500.0,0.00019178,2]
[330535937,1719561052847,-1627.14,0.00019178,2]
[330535938,1719561052857,-500.0,0.00019178,2]
[330535939,1719561052867,-500.0,0.00019178,2]
[330535940,1719561052878,-500.0,0.00019178,2]
[330535941,1719561052888,-1739.9,0.00019178,2]
[330535942,1719561052898,-1201.25,0.00019178,2]
[330535943,1719561052909,-500.0,0.00019178,2]
[330535944,1719561052918,-823.37,0.00019178,2]
[330535945,1719561052928,-365.95338885,0.00019178,2]
[330535946,1719561052937,-500.0,0.00019178,2]
[330535947,1719561052947,-1677.95,0.00019178,2]
[330535948,1719561052959,-500.0,0.00019178,2]
[330535949,1719561052968,-500.0,0.00019178,2]
[330535950,1719561052978,-500.0,0.00019178,2]
[330535951,1719561052988,-4579.29,0.00019178,2]
[330535952,1719561052997,-2423.48,0.00019178,2]
[330535953,1719561053007,-500.0,0.00019178,2]
[330535954,1719561053017,-564.34,0.00019178,2]
[330535955,1719561053027,-4356.08,0.00019178,2]
[330535956,1719561053037,-500.0,0.00019178,2]
[330535957,1719561053047,-500.0,0.00019178,2]
[330535958,1719561053057,-10448.28,0.00019178,2]
[330535959,1719561053067,-500.0,0.00019178,2]
[330535960,1719561053076,-500.0,0.00019178,2]
[330535961,1719561053086,-3220.4,0.00019178,2]
[330535962,1719561053095,-500.0,0.00019178,2]
[330535963,1719561053105,-500.0,0.00019178,2]
[330535964,1719561053115,-500.0,0.00019178,2]
[330535965,1719561053124,-500.0,0.00019178,2]
[330535966,1719561053135,-4745.96,0.00019178,2]
[330535967,1719561053146,-2461.19,0.00019178,2]
[330535968,1719561053157,-500.0,0.00019178,2]
[330535969,1719561053168,-575.39,0.00019178,2]
[330535970,1719561053177,-848.23,0.00019178,2]
[330535971,1719561053187,-571.54,0.00019178,2]
[330535972,1719561053197,-500.0,0.00019178,2]
[330535973,1719561053211,-500.0,0.00019178,2]
[330535974,1719561053220,-1688.67,0.00019178,2]
[330535975,1719561053230,-500.0,0.00019178,2]
[330535976,1719561053239,-500.0,0.00019178,2]
[330535977,1719561053249,-662.7,0.00019178,2]
[330535978,1719561053375,-500.0,0.00019178,2]
[330535979,1719561053385,-1372.06,0.00019178,2]
[330535980,1719561053394,-504.88,0.00019178,2]
[330535981,1719561053403,-500.0,0.00019178,2]
[330535982,1719561053412,-249.68514945,0.00019178,2]
[330535983,1719561053421,-1056.34,0.00019178,2]
[330535984,1719561053431,-1074.08,0.00019178,2]
[330535985,1719561053440,-606.3,0.00019178,2]
[330535986,1719561053449,-500.0,0.00019178,2]
[330535987,1719561053462,-500.0,0.00019178,2]
[330535988,1719561053471,-500.0,0.00019178,2]
[330535989,1719561053480,-2441.39,0.00019178,2]
[330535990,1719561053490,-2465.9,0.00019178,2]
[330535991,1719561053499,-500.0,0.00019178,2]
[330535992,1719561053509,-1390.74,0.00019178,2]
[330535993,1719561053519,-1781.97,0.00019178,2]
[330535994,1719561053528,-500.0,0.00019178,2]
[330535995,1719561053537,-935.7,0.00019178,2]
[330535996,1719561053547,-500.0,0.00019178,2]
[330535997,1719561053556,-500.0,0.00019178,2]
[330535998,1719561053566,-3285.77,0.00019178,2]
[330535999,1719561053575,-500.0,0.00019178,2]
[330536000,1719561053584,-500.0,0.00019178,2]
[330536001,1719561053593,-525.03,0.00019178,2]
[330536002,1719561053603,-500.0,0.00019178,2]
[330536003,1719561053612,-668.57,0.00019178,2]
[330536004,1719561053622,-500.0,0.00019178,2]
[330536005,1719561053631,-500.0,0.00019178,2]
[330536006,1719561053640,-1463.5,0.00019178,2]
[330536007,1719561053650,-500.0,0.00019178,2]
[330536008,1719561053659,-1552.82,0.00019178,2]
[330536009,1719561053668,-500.0,0.00019178,2]
[330536010,1719561053678,-1253.08,0.00019178,2]
[330536011,1719561053687,-1287.58,0.00019178,2]
[330536012,1719561053696,-500.0,0.00019178,2]
[330536013,1719561053707,-500.0,0.00019178,2]
[330536014,1719561053715,-500.0,0.00019178,2]
[330536015,1719561053724,-1221.61,0.00019178,2]
[330536016,1719561053734,-500.0,0.00019178,2]
[330536017,1719561053743,-500.0,0.00019178,2]
[330536018,1719561053752,-646.11426475,0.00019178,2]
[330536019,1719561053761,-2098.47,0.00019178,2]
[330536020,1719561053770,-500.0,0.00019178,2]
[330536021,1719561053779,-861.59,0.00019178,2]
[330536022,1719561053789,-1171.21,0.00019178,2]
[330536023,1719561053798,-500.0,0.00019178,2]
[330536024,1719561053808,-3809.85,0.00019178,2]
[330536025,1719561053818,-500.0,0.00019178,2]
[330536026,1719561053831,-616.22428788,0.00019178,2]
[330536027,1719561053844,-1526.48,0.00019178,2]
[330536028,1719561053854,-500.0,0.00019178,2]
[330536029,1719561053863,-1044.61,0.00019178,2]
[330536030,1719561053875,-2191.37,0.00019178,2]
[330536031,1719561053885,-500.0,0.00019178,2]
[330536032,1719561053894,-500.0,0.00019178,2]
[330536033,1719561053904,-500.0,0.00019178,2]
[330536034,1719561053917,-500.0,0.00019178,2]
[330536035,1719561053928,-1251.54,0.00019178,2]
[330536036,1719561053937,-2330.29,0.00019178,2]
[330536037,1719561053947,-1197.85,0.00019178,2]
[330536038,1719561053958,-3118.59,0.00019178,2]
[330536039,1719561053968,-500.0,0.00019178,2]
[330536040,1719561053978,-532.97,0.00019178,2]
[330536041,1719561053987,-500.0,0.00019178,2]
[330536042,1719561053996,-2052.11,0.00019178,2]
[330536043,1719561054006,-500.0,0.00019178,2]
[330536044,1719561054016,-5026.87,0.00019178,2]
[330536045,1719561054026,-2335.36,0.00019178,2]
[330536046,1719561054036,-873.76,0.00019178,2]
[330536047,1719561054046,-3596.87,0.00019178,2]
[330536048,1719561054055,-1566.0,0.00019178,2]
[330536049,1719561054065,-1698.0,0.00019178,2]
[330536050,1719561054074,-1543.01,0.00019178,2]
[330536051,1719561054084,-3389.93,0.00019178,2]
[330536052,1719561054093,-500.0,0.00019178,2]
[330536053,1719561054103,-648.91,0.00019178,2]
[330536054,1719561054112,-978.5,0.00019178,2]
[330536055,1719561054121,-2869.58,0.00019178,2]
[330536056,1719561054131,-762.46,0.00019178,2]
[330536057,1719561054140,-595.54,0.00019178,2]
[330536058,1719561054150,-638.08,0.00019178,2]
[330536059,1719561054160,-526.25,0.00019178,2]
[330536060,1719561054169,-500.0,0.00019178,2]
[330536061,1719561054178,-780.19,0.00019178,2]
[330536062,1719561054187,-500.0,0.00019178,2]
[330536063,1719561054197,-855.45,0.00019178,2]
[330536064,1719561054207,-1000.0,0.00019178,2]
[330536065,1719561054217,-12184.84,0.00019178,2]
[330536066,1719561054226,-251.65219599,0.00019178,2]
[330536067,1719561054235,-1166.4,0.00019178,2]
[330536068,1719561054245,-500.0,0.00019178,2]
[330536069,1719561054254,-779.68,0.00019178,2]
[330536070,1719561054264,-1703.63,0.00019178,2]
[330536071,1719561054273,-783.91,0.00019178,2]
[330536072,1719561054282,-4108.34,0.00019178,2]
[330536073,1719561054291,-655.17,0.00019178,2]
[330536074,1719561054300,-500.0,0.00019178,2]
[330536075,1719561054310,-577.58,0.00019178,2]
[330536076,1719561054319,-1434.26,0.00019178,2]
[330536077,1719561054329,-1494.47,0.00019178,2]
[330536078,1719561054338,-1812.77,0.00019178,2]
[330536079,1719561054347,-500.0,0.00019178,2]
[330536080,1719561054356,-500.0,0.00019178,2]
[330536081,1719561054366,-803.64,0.00019178,2]
[330536082,1719561054375,-8612.7,0.00019178,2]
[330536083,1719561054384,-500.0,0.00019178,2]
[330536084,1719561054394,-500.0,0.00019178,2]
[330536085,1719561054403,-2570.43,0.00019178,2]
[330536086,1719561054412,-2233.3,0.00019178,2]
[330536087,1719561054421,-7571.09,0.00019178,2]
[330536088,1719561054430,-564.9,0.00019178,2]
[330536089,1719561054439,-833.81,0.00019178,2]
[330536090,1719561054449,-500.0,0.00019178,2]
[330536091,1719561054460,-651.19,0.00019178,2]
[330536092,1719561054470,-990.66,0.00019178,2]
[330536093,1719561054479,-500.0,0.00019178,2]
[330536094,1719561054489,-500.0,0.00019178,2]
[330536095,1719561054499,-500.0,0.00019178,2]
[330536096,1719561054508,-1393.07,0.00019178,2]
[330536097,1719561054518,-795.17,0.00019178,2]
[330536098,1719561054527,-1571.82,0.00019178,2]
[330536099,1719561054537,-803.77,0.00019178,2]
[330536100,1719561054546,-2442.19,0.00019178,2]
[330536101,1719561054556,-500.0,0.00019178,2]
[330536102,1719561054565,-500.0,0.00019178,2]
[330536103,1719561054574,-500.0,0.00019178,2]
[330536104,1719561054584,-500.0,0.00019178,2]
[330536105,1719561054593,-500.0,0.00019178,2]
[330536106,1719561054603,-1017.76,0.00019178,2]
[330536107,1719561054613,-985.98,0.00019178,2]
[330536108,1719561054623,-3900.49,0.00019178,2]
[330536109,1719561054632,-3571.61,0.00019178,2]
[330536110,1719561054642,-623.56,0.00019178,2]
[330536111,1719561054651,-500.0,0.00019178,2]
[330536112,1719561054661,-510.44,0.00019178,2]
[330536113,1719561054671,-974.54,0.00019178,2]
[330536114,1719561054680,-3626.35,0.00019178,2]
[330536115,1719561054689,-673.35,0.00019178,2]
[330536116,1719561054699,-500.0,0.00019178,2]
[330536117,1719561054709,-500.0,0.00019178,2]
[330536118,1719561054718,-500.0,0.00019178,2]
[330536119,1719561054728,-500.0,0.00019178,2]
[330536120,1719561054737,-500.0,0.00019178,2]
[330536121,1719561054748,-914.91,0.00019178,2]
[330536122,1719561054758,-1975.34,0.00019178,2]
[330536123,1719561054767,-4977.96,0.00019178,2]
[330536124,1719561054778,-500.0,0.00019178,2]
[330536125,1719561054787,-500.0,0.00019178,2]
[330536126,1719561054798,-668.22,0.00019178,2]
[330536127,1719561054807,-4103.33,0.00019178,2]
[330536128,1719561054818,-929.98,0.00019178,2]
[330536129,1719561054831,-500.0,0.00019178,2]
[330536130,1719561054845,-690.61,0.00019178,2]
[330536131,1719561054857,-2114.11,0.00019178,2]
[330536132,1719561054867,-1628.46,0.00019178,2]
[330536133,1719561054876,-500.0,0.00019178,2]
[330536134,1719561054886,-1444.66,0.00019178,2]
[330536135,1719561054896,-500.0,0.00019178,2]
[330536136,1719561054905,-933.49,0.00019178,2]
[330536137,1719561054918,-2888.25,0.00019178,2]
[330536138,1719561054927,-500.0,0.00019178,2]
[330536139,1719561054937,-1988.26,0.00019178,2]
[330536140,1719561054947,-1270.72,0.00019178,2]
[330536141,1719561054958,-3537.73,0.00019178,2]
[330536142,1719561054968,-500.0,0.00019178,2]
[330536143,1719561054978,-646.8,0.00019178,2]
[330536144,1719561054988,-500.0,0.00019178,2]
[330536145,1719561054997,-3537.83,0.00019178,2]
[330536146,1719561055007,-1016.96,0.00019178,2]
[330536147,1719561055017,-500.0,0.00019178,2]
[330536148,1719561055027,-4400.98,0.00019178,2]
[330536149,1719561055036,-500.0,0.00019178,2]
[330536150,1719561055046,-6545.79,0.00019178,2]
[330536151,1719561055056,-588.73,0.00019178,2]
[330536152,1719561055066,-768.32,0.00019178,2]
[330536153,1719561055076,-1070.33,0.00019178,2]
[330536154,1719561055085,-892.56,0.00019178,2]
[330536155,1719561055095,-743.46,0.00019178,2]
[330536156,1719561055104,-1231.54,0.00019178,2]
[330536157,1719561055113,-500.0,0.00019178,2]
[330536158,1719561055122,-389.92809535,0.00019178,2]
[330536159,1719561055132,-895.8,0.00019178,2]
[330536160,1719561055142,-500.0,0.00019178,2]
[330536161,1719561055152,-500.0,0.00019178,2]
[330536162,1719561055162,-2097.83,0.00019178,2]
[330536163,1719561055172,-500.0,0.00019178,2]
[330536164,1719561055181,-1690.54,0.00019178,2]
[330536165,1719561055191,-500.0,0.00019178,2]
[330536166,1719561055200,-500.0,0.00019178,2]
[330536167,1719561055213,-1690.54,0.00019178,2]
[330536168,1719561055222,-1690.54,0.00019178,2]
[330536169,1719561055231,-1690.54,0.00019178,2]
[330536170,1719561055240,-3334.25,0.00019178,2]
[330536171,1719561055249,-500.0,0.00019178,2]
[330536172,1719561055258,-1690.54,0.00019178,2]
[330536173,1719561055267,-3150.03,0.00019178,2]
[330536174,1719561055276,-500.0,0.00019178,2]
[330536175,1719561055285,-1690.54,0.00019178,2]
[330536176,1719561055295,-1690.54,0.00019178,2]
[330536177,1719561055304,-500.0,0.00019178,2]
[330536178,1719561055314,-500.0,0.00019178,2]
[330536179,1719561055323,-1690.54,0.00019178,2]
[330536180,1719561055332,-610.61,0.00019178,2]
[330536181,1719561055342,-500.0,0.00019178,2]
[330536182,1719561055352,-1690.54,0.00019178,2]
[330536183,1719561055361,-500.0,0.00019178,2]
[330536184,1719561055371,-500.0,0.00019178,2]
[330536185,1719561055380,-1690.54,0.00019178,2]
[330536186,1719561055390,-1099.72,0.00019178,2]
[330536187,1719561055400,-1690.54,0.00019178,2]
[330536188,1719561055409,-500.0,0.00019178,2]
[330536189,1719561055418,-1690.54,0.00019178,2]
[330536190,1719561055428,-1552.28,0.00019178,2]
[330536191,1719561055438,-1690.54,0.00019178,2]
[330536192,1719561055447,-735.24,0.00019178,2]
[330536193,1719561055458,-500.0,0.00019178,2]
[330536194,1719561055468,-1690.54,0.00019178,2]
[330536195,1719561055478,-500.0,0.00019178,2]
[330536196,1719561055487,-1827.69,0.00019178,2]
[330536197,1719561055497,-500.0,0.00019178,2]
[330536198,1719561055507,-1690.54,0.00019178,2]
[330536199,1719561055516,-2422.64,0.00019178,2]
[330536200,1719561055526,-3657.77,0.00019178,2]
[330536201,1719561055536,-1690.54,0.00019178,2]
[330536202,1719561055545,-500.0,0.00019178,2]
[330536203,1719561055556,-1690.54,0.00019178,2]
[330536204,1719561055565,-500.0,0.00019178,2]
[330536205,1719561055575,-1690.54,0.00019178,2]
[330536206,1719561055584,-1690.54,0.00019178,2]
[330536207,1719561055595,-14987.84,0.00019178,2]
[330536208,1719561055604,-2088.49,0.00019178,2]
[330536209,1719561055615,-500.0,0.00019178,2]
[330536210,1719561055625,-561.79,0.00019178,2]
[330536211,1719561055635,-500.0,0.00019178,2]
[330536212,1719561055645,-1894.39,0.00019178,2]
[330536213,1719561055656,-890.94,0.00019178,2]
[330536214,1719561055666,-1243.28,0.00019178,2]
[330536215,1719561055676,-500.0,0.00019178,2]
[330536216,1719561055687,-2029.23,0.00019178,2]
[330536217,1719561055697,-1128.27,0.00019178,2]
[330536218,1719561055709,-500.0,0.00019178,2]
[330536219,1719561055720,-2561.23,0.00019178,2]
[330536220,1719561055729,-604.19,0.00019178,2]
[330536221,1719561055739,-2467.25,0.00019178,2]
[330536222,1719561055752,-500.0,0.00019178,2]
[330536223,1719561055762,-1302.81,0.00019178,2]
[330536224,1719561055772,-500.0,0.00019178,2]
[330536225,1719561055782,-500.0,0.00019178,2]
[330536226,1719561055791,-500.0,0.00019178,2]
[330536227,1719561055801,-500.0,0.00019178,2]
[330536228,1719561055810,-500.0,0.00019178,2]
[330536229,1719561055820,-580.74,0.00019178,2]
[330536230,1719561055835,-2378.96,0.00019178,2]